fUSD/lending_fUSD_20241107
["ID","MTS","AMOUNT","RATE_DAILY","PERIOD"]
[341544397,1730971835842,-500.0,0.00030136,4]
[341544398,1730971835851,-500.0,0.00030136,4]
[341544399,1730971835860,-500.0,0.00030136,4]
[341544400,1730971835871,-500.0,0.00030136,4]
[341544401,1730971835880,-500.0,0.00030136,4]
[341544402,1730971835892,-560.94,0.00030136,4]
[341544403,1730971835901,-572.68,0.00030136,4]
[341544404,1730971835911,-500.0,0.00030136,4]
[341544405,1730971835920,-500.0,0.00030136,4]
[341544406,1730971835929,-500.0,0.00030136,4]
[341544407,1730971835938,-500.0,0.00030136,4]
[341544408,1730971835947,-500.0,0.00030136,4]
[341544409,1730971835956,-500.0,0.00030136,4]
[341544410,1730971835966,-1579.56,0.00030136,4]
[341544411,1730971835977,-586.13,0.00030136,4]
[341544412,1730971835986,-500.0,0.00030136,4]
[341544413,1730971835996,-1604.28,0.00030136,4]
[341544414,1730971836006,-500.0,0.00030136,4]
[341544415,1730971836016,-500.0,0.00030136,4]
[341544416,1730971836025,-661.65,0.00030136,4]
[341544417,1730971836035,-607.0,0.00030136,4]
[341544418,1730971836045,-1236.79,0.00030136,4]
[341544419,1730971836054,-500.0,0.00030136,4]
[341544420,1730971836064,-500.0,0.00030136,4]
[341544421,1730971836074,-500.0,0.00030136,4]
[341544422,1730971836084,-500.0,0.00030136,4]
[341544423,1730971836093,-500.0,0.00030136,4]
[341544424,1730971836102,-504.17,0.00030136,4]
[341544425,1730971836112,-500.0,0.00030136,4]
[341544426,1730971836121,-629.84,0.00030136,4]
[341544427,1730971836131,-500.0,0.00030136,4]
[341544428,1730971836140,-500.0,0.00030136,4]
[341544429,1730971836149,-511.56,0.00030136,4]
[341544430,1730971836159,-625.42,0.00030136,4]
[341544431,1730971836168,-500.0,0.00030136,4]
[341544432,1730971836177,-946.32,0.00030136,4]
[341544433,1730971836187,-903.71,0.00030136,4]
[341544434,1730971836196,-500.0,0.00030136,4]
[341544435,1730971836205,-500.0,0.00030136,4]
[341544436,1730971836214,-500.0,0.00030136,4]
[341544437,1730971836224,-500.0,0.00030136,4]
[341544438,1730971836234,-500.0,0.00030136,4]
[341544439,1730971836243,-292.16166505,0.00030136,4]
[341544440,1730971836253,-500.0,0.00030136,4]
[341544441,1730971836262,-500.0,0.00030136,4]
[341544442,1730971836272,-500.0,0.00030136,4]
[341544443,1730971836281,-500.0,0.00030136,4]
[341544444,1730971836291,-500.0,0.00030136,4]
[341544445,1730971836300,-500.0,0.00030136,4]
[341544446,1730971836310,-500.0,0.00030136,4]
[341544447,1730971836319,-500.0,0.00030136,4]
[341544448,1730971836329,-500.0,0.00030136,4]
[341544449,1730971836339,-1193.13,0.00030136,4]
[341544450,1730971836349,-500.0,0.00030136,4]
[341544451,1730971836359,-500.0,0.00030136,4]
[341544452,1730971836369,-576.45,0.00030136,4]
[341544453,1730971836379,-500.0,0.00030136,4]
[341544454,1730971836389,-5264.54,0.00030136,4]
[341544455,1730971836398,-165.46740575,0.00030136,4]
[341544456,1730971836425,-342.78259425,0.00030136,4]
[341544457,1730971836435,-500.0,0.00030136,4]
[341544458,1730971836445,-1055.85,0.00030136,4]
[341544459,1730971836454,-500.0,0.00030136,4]
[341544460,1730971836464,-776.0,0.00030136,4]
[341544461,1730971836473,-500.0,0.00030136,4]
[341544462,1730971836484,-785.6,0.00030136,4]
[341544463,1730971836494,-500.0,0.00030136,4]
[341544464,1730971836504,-500.0,0.00030136,4]
[341544465,1730971836513,-500.0,0.00030136,4]
[341544466,1730971836523,-707.75,0.00030136,4]
[341544467,1730971836533,-649.81,0.00030136,4]
[341544468,1730971836542,-1064.41,0.00030136,4]
[341544469,1730971836552,-500.0,0.00030136,4]
[341544470,1730971836562,-472.82892804,0.00030136,4]
[341544471,1730971836572,-180.596321,0.00030136,4]
[341544472,1730971836581,-698.7,0.00030136,4]
[341544473,1730971836590,-500.0,0.00030136,4]
[341544474,1730971836599,-2120.96,0.00030136,4]
[341544475,1730971836609,-808.65,0.00030136,4]
[341544476,1730971836618,-500.0,0.00030136,4]
[341544477,1730971836628,-886.43,0.00030136,4]
[341544478,1730971836637,-1279.72,0.00030136,4]
[341544479,1730971836647,-500.0,0.00030136,4]
[341544480,1730971836656,-560.13,0.00030136,4]
[341544481,1730971836666,-739.3,0.00030136,4]
[341544482,1730971836675,-500.0,0.00030136,4]
[341544483,1730971836684,-687.25,0.00030136,4]
[341544484,1730971836693,-546.06,0.00030136,4]
[341544485,1730971836703,-4076.65,0.00030136,4]
[341544486,1730971836712,-500.0,0.00030136,4]
[341544487,1730971836722,-500.0,0.00030136,4]
[341544488,1730971836733,-578.17,0.00030136,4]
[341544489,1730971836742,-991.16,0.00030136,4]
[341544490,1730971836751,-608.38,0.00030136,4]
[341544491,1730971836760,-500.0,0.00030136,4]
[341544492,1730971836769,-500.0,0.00030136,4]
[341544493,1730971836779,-500.0,0.00030136,4]
[341544494,1730971836788,-1765.39,0.00030136,4]
[341544495,1730971836797,-904.86,0.00030136,4]
[341544496,1730971836807,-501.48,0.00030136,4]
[341544497,1730971836816,-500.0,0.00030136,4]
[341544498,1730971836826,-500.0,0.00030136,4]
[341544499,1730971836835,-500.0,0.00030136,4]
[341544500,1730971836844,-1306.55,0.00030136,4]
[341544501,1730971836854,-668.92,0.00030136,4]
[341544502,1730971836863,-500.0,0.00030136,4]
[341544503,1730971836873,-500.0,0.00030136,4]
[341544504,1730971836882,-596.14,0.00030136,4]
[341544505,1730971836891,-500.0,0.00030136,4]
[341544506,1730971836901,-500.0,0.00030136,4]
[341544507,1730971836911,-500.0,0.00030136,4]
[341544508,1730971836920,-500.0,0.00030136,4]
[341544509,1730971836929,-501.16,0.00030136,4]
[341544510,1730971836939,-1887.05,0.00030136,4]
[341544511,1730971837140,-2063.62,0.00030136,4]
[341544512,1730971837179,-1469.13,0.00030136,4]
[341544513,1730971837190,-510.45,0.00030136,4]
[341544514,1730971837200,-500.0,0.00030136,4]
[341544515,1730971837209,-500.0,0.00030136,4]
[341544516,1730971837219,-607.63,0.00030136,4]
[341544517,1730971837229,-2550.56,0.00030136,4]
[341544518,1730971837239,-500.0,0.00030136,4]
[341544519,1730971837248,-500.0,0.00030136,4]
[341544520,1730971837258,-888.5,0.00030136,4]
[341544521,1730971837267,-1961.33,0.00030136,4]
[341544522,1730971837277,-500.0,0.00030136,4]
[341544523,1730971837287,-1008.81,0.00030136,4]
[341544524,1730971837298,-500.0,0.00030136,4]
[341544525,1730971837307,-500.0,0.00030136,4]
[341544526,1730971837318,-897.55,0.00030136,4]
[341544527,1730971837328,-586.65,0.00030136,4]
[341544528,1730971837338,-3306.42,0.00030136,4]
[341544529,1730971837348,-820.11,0.00030136,4]
[341544530,1730971837358,-1768.31,0.00030136,4]
[341544531,1730971837368,-500.0,0.00030136,4]
[341544532,1730971837379,-1112.84,0.00030136,4]
[341544533,1730971837389,-500.0,0.00030136,4]
[341544534,1730971837399,-500.0,0.00030136,4]
[341544535,1730971837409,-500.0,0.00030136,4]
[341544536,1730971837419,-500.0,0.00030136,4]
[341544537,1730971837430,-954.59,0.00030136,4]
[341544538,1730971837439,-1407.46,0.00030136,4]
[341544539,1730971837449,-3019.45,0.00030136,4]
[341544540,1730971837459,-500.0,0.00030136,4]
[341544541,1730971837468,-500.0,0.00030136,4]
[341544542,1730971837479,-764.04,0.00030136,4]
[341544543,1730971837489,-656.15,0.00030136,4]
[341544544,1730971837499,-500.0,0.00030136,4]
[341544545,1730971837509,-603.18,0.00030136,4]
[341544546,1730971837519,-500.0,0.00030136,4]
[341544547,1730971837528,-500.0,0.00030136,4]
[341544548,1730971837537,-715.98,0.00030136,4]
[341544549,1730971837546,-500.0,0.00030136,4]
[341544550,1730971837556,-1442.84,0.00030136,4]
[341544551,1730971837565,-500.0,0.00030136,4]
[341544552,1730971837575,-1481.62,0.00030136,4]
[341544553,1730971837585,-500.0,0.00030136,4]
[341544554,1730971837594,-3931.84,0.00030136,4]
[341544555,1730971837604,-906.26,0.00030136,4]
[341544556,1730971837613,-500.0,0.00030136,4]
[341544557,1730971837628,-500.0,0.00030136,4]
[341544558,1730971837637,-500.0,0.00030136,4]
[341544559,1730971837646,-1109.03,0.00030136,4]
[341544560,1730971837656,-2571.6,0.00030136,4]
[341544561,1730971837666,-2121.99,0.00030136,4]
[341544562,1730971837675,-500.0,0.00030136,4]
[341544563,1730971837685,-716.8,0.00030136,4]
[341544564,1730971837695,-1370.97,0.00030136,4]
[341544565,1730971837704,-500.0,0.00030136,4]
[341544566,1730971837713,-2517.37,0.00030136,4]
[341544567,1730971837723,-500.0,0.00030136,4]
[341544568,1730971837737,-1898.75,0.00030136,4]
[341544569,1730971837747,-1359.84,0.00030136,4]
[341544570,1730971837757,-1024.49,0.00030136,4]
[341544571,1730971837766,-779.2,0.00030136,4]
[341544572,1730971837776,-623.74,0.00030136,4]
[341544573,1730971837786,-1926.13,0.00030136,4]
[341544574,1730971837795,-1519.1,0.00030136,4]
[341544575,1730971837805,-500.0,0.00030136,4]
[341544576,1730971837815,-500.0,0.00030136,4]
[341544577,1730971837825,-1023.01,0.00030136,4]
[341544578,1730971837835,-1545.71,0.00030136,4]
[341544579,1730971837846,-500.0,0.00030136,4]
[341544580,1730971837856,-500.0,0.00030136,4]
[341544581,1730971837865,-1040.8,0.00030136,4]
[341544582,1730971837875,-500.0,0.00030136,4]
[341544583,1730971837884,-1208.28,0.00030136,4]
[341544584,1730971837894,-500.0,0.00030136,4]
[341544585,1730971837903,-500.0,0.00030136,4]
[341544586,1730971837913,-500.0,0.00030136,4]
[341544587,1730971837922,-1321.01,0.00030136,4]
[341544588,1730971837931,-500.0,0.00030136,4]
[341544589,1730971837941,-628.35,0.00030136,4]
[341544590,1730971837950,-1057.97,0.00030136,4]
[341544591,1730971837960,-1062.95,0.00030136,4]
[341544592,1730971837969,-1662.86,0.00030136,4]
[341544593,1730971837981,-1216.5,0.00030136,4]
[341544594,1730971837991,-505.75,0.00030136,4]
[341544595,1730971838001,-500.0,0.00030136,4]
[341544596,1730971838010,-500.0,0.00030136,4]
[341544597,1730971838020,-500.0,0.00030136,4]
[341544598,1730971838030,-500.0,0.00030136,4]
[341544599,1730971838040,-715.13,0.00030136,4]
[341544600,1730971838050,-745.91,0.00030136,4]
[341544601,1730971838060,-500.0,0.00030136,4]
[341544602,1730971838070,-500.0,0.00030136,4]
[341544603,1730971838079,-500.0,0.00030136,4]
[341544604,1730971838089,-500.0,0.00030136,4]
[341544605,1730971838099,-331.52067734,0.00030136,4]
[341544606,1730971838109,-500.0,0.00030136,4]
[341544607,1730971838118,-500.0,0.00030136,4]
[341544608,1730971838128,-528.72,0.00030136,4]
[341544609,1730971838138,-755.66,0.00030136,4]
[341544610,1730971838148,-926.15,0.00030136,4]
[341544611,1730971838158,-529.09,0.00030136,4]
[341544612,1730971838168,-3471.82,0.00030136,4]
[341544613,1730971838178,-1428.07,0.00030136,4]
[341544614,1730971838191,-500.0,0.00030136,4]
[341544615,1730971838206,-500.0,0.00030136,4]
[341544616,1730971838217,-522.11,0.00030136,4]
[341544617,1730971838229,-500.0,0.00030136,4]
[341544618,1730971838240,-915.48,0.00030136,4]
[341544619,1730971838250,-1440.39,0.00030136,4]
[341544620,1730971838259,-500.0,0.00030136,4]
[341544621,1730971838268,-500.0,0.00030136,4]
[341544622,1730971838277,-500.0,0.00030136,4]
[341544623,1730971838286,-500.0,0.00030136,4]
[341544624,1730971838296,-1102.17,0.00030136,4]
[341544625,1730971838306,-2240.21,0.00030136,4]
[341544626,1730971838316,-500.0,0.00030136,4]
[341544627,1730971838326,-500.0,0.00030136,4]
[341544628,1730971838336,-500.0,0.00030136,4]
[341544629,1730971838346,-399.88933131,0.00030136,4]
[341544630,1730971838357,-500.0,0.00030136,4]
[341544631,1730971838367,-859.24,0.00030136,4]
[341544632,1730971838377,-1449.86,0.00030136,4]
[341544633,1730971838386,-500.0,0.00030136,4]
[341544634,1730971838396,-1375.44,0.00030136,4]
[341544635,1730971838406,-500.0,0.00030136,4]
[341544636,1730971838416,-641.32,0.00030136,2]
[341544637,1730971838426,-500.0,0.00030136,4]
[341544638,1730971838436,-1430.05,0.00030136,4]
[341544639,1730971838446,-500.0,0.00030136,4]
[341544640,1730971838456,-2283.68,0.00030136,4]
[341544641,1730971838465,-1067.89,0.00030136,4]
[341544642,1730971838475,-1567.46,0.00030136,4]
[341544643,1730971838485,-500.0,0.00030136,4]
[341544644,1730971838496,-500.0,0.00030136,4]
[341544645,1730971838507,-500.0,0.00030136,4]
[341544646,1730971838518,-1206.14,0.00030136,4]
[341544647,1730971838528,-4113.83,0.00030136,4]
[341544648,1730971838539,-500.0,0.00030136,4]
[341544649,1730971838548,-500.0,0.00030136,4]
[341544650,1730971838559,-852.05,0.00030136,4]
[341544651,1730971838572,-500.0,0.00030136,4]
[341544652,1730971838582,-500.0,0.00030136,4]
[341544653,1730971838592,-1025.48,0.00030136,4]
[341544654,1730971838602,-1466.07,0.00030136,4]
[341544655,1730971838614,-1429.97,0.00030136,4]
[341544656,1730971838625,-500.0,0.00030136,4]
[341544657,1730971838636,-202.15993136,0.00030173,2]
[341544658,1730971838650,-500.0,0.00030231,4]
[341544659,1730971838659,-161.94,0.00030293,2]
[341544660,1730971838670,-250.32046918,0.000304,2]
[341544661,1730971838679,-500.0,0.00030409,4]
[341544662,1730971838688,-500.0,0.00030409,4]
[341544663,1730971838698,-500.0,0.00030409,4]
[341544664,1730971838708,-500.0,0.00030409,4]
[341544665,1730971838717,-679.62,0.0003041,4]
[341544666,1730971838727,-230.59,0.0003041,4]
[341544667,1730971838742,-1203.43,0.0003041,4]
[341544668,1730971838759,-500.0,0.0003041,4]
[341544669,1730971838769,-479.29847131,0.0003041,4]
[341544670,1730971838779,-500.0,0.0003041,4]
[341544671,1730971838789,-500.0,0.0003041,4]
[341544672,1730971838799,-674.89,0.0003041,4]
[341544673,1730971838808,-500.0,0.0003041,4]
[341544674,1730971838818,-618.0,0.0003041,4]
[341544675,1730971838828,-500.0,0.0003041,4]
[341544676,1730971838838,-945.04,0.0003041,4]
[341544677,1730971838848,-568.56,0.0003041,4]
[341544678,1730971838858,-500.0,0.0003041,4]
[341544679,1730971838867,-500.0,0.0003041,4]
[341544680,1730971838877,-768.15,0.0003041,4]
[341544681,1730971838887,-500.0,0.0003041,4]
[341544682,1730971838896,-500.0,0.0003041,4]
[341544683,1730971838906,-500.0,0.0003041,4]
[341544684,1730971838915,-500.0,0.0003041,4]
[341544685,1730971838924,-1095.88,0.0003041,4]
[341544686,1730971838934,-304.43900245,0.0003041,4]
[341544687,1730971838944,-500.0,0.0003041,4]
[341544688,1730971838954,-500.0,0.0003041,4]
[341544689,1730971838963,-784.42,0.0003041,4]
[341544690,1730971838973,-500.0,0.0003041,4]
[341544691,1730971838984,-500.0,0.0003041,4]
[341544692,1730971838993,-504.66,0.0003041,4]
[341544693,1730971839004,-500.0,0.0003041,4]
[341544694,1730971839014,-798.5,0.0003041,4]
[341544695,1730971839023,-500.0,0.0003041,4]
[341544696,1730971839033,-896.45,0.0003041,4]
[341544697,1730971839043,-500.0,0.0003041,4]
[341544698,1730971839053,-1188.14,0.0003041,4]
[341544699,1730971839063,-500.0,0.0003041,4]
[341544700,1730971839073,-500.0,0.0003041,4]
[341544701,1730971839083,-1411.5,0.0003041,4]
[341544702,1730971839093,-1015.03,0.0003041,4]
[341544703,1730971839103,-500.0,0.0003041,4]
[341544704,1730971839113,-540.54,0.0003041,4]
[341544705,1730971839123,-500.0,0.0003041,4]
[341544706,1730971839133,-500.0,0.0003041,4]
[341544707,1730971839143,-1089.99,0.0003041,4]
[341544708,1730971839153,-500.0,0.0003041,4]
[341544709,1730971839162,-258.47273114,0.0003041,4]
[341544710,1730971839172,-795.62,0.0003041,4]
[341544711,1730971839182,-624.92,0.0003041,4]
[341544712,1730971839191,-500.0,0.0003041,4]
[341544713,1730971839201,-690.8,0.0003041,4]
[341544714,1730971839211,-815.48,0.0003041,4]
[341544715,1730971839220,-500.0,0.0003041,4]
[341544716,1730971839232,-894.5,0.0003041,4]
[341544717,1730971839242,-500.0,0.0003041,4]
[341544718,1730971839252,-985.68,0.0003041,4]
[341544719,1730971839263,-500.0,0.0003041,4]
[341544720,1730971839272,-500.0,0.0003041,4]
[341544721,1730971839282,-624.76,0.0003041,4]
[341544722,1730971839293,-500.0,0.0003041,4]
[341544723,1730971839303,-804.15,0.0003041,4]
[341544724,1730971839313,-500.0,0.0003041,4]
[341544725,1730971839323,-500.0,0.0003041,4]
[341544726,1730971839333,-500.0,0.0003041,4]
[341544727,1730971839343,-1261.85,0.0003041,4]
[341544728,1730971839353,-500.0,0.0003041,4]
[341544729,1730971839364,-502.79,0.0003041,4]
[341544730,1730971839374,-500.0,0.0003041,4]
[341544731,1730971839384,-539.07,0.0003041,4]
[341544732,1730971839395,-593.89,0.0003041,4]
[341544733,1730971839406,-990.34,0.0003041,4]
[341544734,1730971839416,-1371.24,0.0003041,4]
[341544735,1730971839426,-500.0,0.0003041,4]
[341544736,1730971839438,-1090.4,0.0003041,4]
[341544737,1730971839448,-500.0,0.0003041,4]
[341544738,1730971839458,-500.0,0.0003041,4]
[341544739,1730971839470,-531.82,0.0003041,4]
[341544740,1730971839479,-500.0,0.0003041,4]
[341544741,1730971839490,-504.66,0.0003041,4]
[341544742,1730971839501,-500.0,0.0003041,4]
[341544743,1730971839511,-512.79,0.0003041,4]
[341544744,1730971839522,-511.07,0.0003041,4]
[341544745,1730971839532,-965.87,0.0003041,4]
[341544746,1730971839542,-1348.18,0.0003041,4]
[341544747,1730971839552,-808.39,0.0003041,4]
[341544748,1730971839561,-500.0,0.0003041,4]
[341544749,1730971839571,-500.0,0.0003041,4]
[341544750,1730971839581,-500.0,0.0003041,4]
[341544752,1730971839590,-510.76,0.0003041,4]
[341544753,1730971839668,-976.66,0.0003041,4]
[341544754,1730971839679,-1081.92,0.0003041,4]
[341544755,1730971839688,-500.0,0.0003041,4]
[341544756,1730971839698,-500.0,0.0003041,4]
[341544757,1730971839707,-500.0,0.0003041,4]
[341544758,1730971839717,-1800.22,0.0003041,4]
[341544759,1730971839727,-500.0,0.0003041,4]
[341544760,1730971839737,-500.0,0.0003041,4]
[341544761,1730971839747,-500.0,0.0003041,4]
[341544762,1730971839756,-1322.69,0.0003041,4]
[341544763,1730971839766,-1039.05,0.0003041,4]
[341544764,1730971839776,-500.0,0.0003041,4]
[341544765,1730971839785,-500.0,0.0003041,4]
[341544766,1730971839794,-982.46,0.0003041,4]
[341544767,1730971839803,-500.0,0.0003041,4]
[341544768,1730971839813,-500.0,0.0003041,4]
[341544769,1730971839822,-500.0,0.0003041,4]
[341544770,1730971839831,-500.0,0.0003041,4]
[341544772,1730971839840,-548.86,0.0003041,4]
[341544774,1730971839849,-500.0,0.0003041,4]
[341544776,1730971839859,-500.0,0.0003041,4]
[341544777,1730971839868,-500.0,0.0003041,4]
[341544779,1730971839877,-500.0,0.0003041,4]
[341544781,1730971839888,-2000.0,0.0003041,4]
[341544783,1730971839897,-1186.66,0.0003041,4]
[341544785,1730971839906,-500.0,0.0003041,4]
[341544787,1730971839915,-500.0,0.0003041,4]
[341544788,1730971839924,-843.04,0.0003041,4]
[341544789,1730971839933,-500.0,0.0003041,4]
[341544790,1730971839942,-500.0,0.0003041,4]
[341544791,1730971839951,-756.82,0.0003041,4]
[341544792,1730971839960,-500.0,0.0003041,4]
[341544793,1730971839970,-500.0,0.0003041,4]
[341544794,1730971839979,-500.0,0.0003041,4]
[341544795,1730971839988,-622.93,0.0003041,4]
[341544796,1730971839999,-500.0,0.0003041,4]
[341544797,1730971840008,-879.48,0.0003041,4]
[341544798,1730971840017,-500.0,0.0003041,4]
[341544799,1730971840026,-500.0,0.0003041,4]
[341544800,1730971840035,-1206.59,0.0003041,4]
[341544801,1730971840044,-500.0,0.0003041,4]
[341544802,1730971840054,-193.640691,0.0003041,4]
[341544803,1730971840063,-500.0,0.0003041,4]
[341544804,1730971840073,-500.0,0.0003041,4]
[341544805,1730971840082,-500.0,0.0003041,4]
[341544806,1730971840092,-500.0,0.0003041,4]
[341544807,1730971840102,-500.0,0.0003041,4]
[341544808,1730971840111,-500.0,0.0003041,4]
[341544809,1730971840121,-500.0,0.0003041,4]
[341544810,1730971840131,-500.0,0.0003041,4]
[341544811,1730971840140,-500.0,0.0003041,4]
[341544812,1730971840150,-500.0,0.0003041,4]
[341544813,1730971840159,-320.04,0.0003041,4]
[341544814,1730971840168,-1010.04,0.0003041,4]
[341544815,1730971840178,-827.43,0.0003041,4]
[341544816,1730971840187,-867.8,0.0003041,4]
[341544817,1730971840196,-500.0,0.0003041,4]
[341544818,1730971840205,-828.06,0.0003041,4]
[341544819,1730971840215,-1624.25,0.0003041,4]
[341544820,1730971840224,-922.89,0.0003041,4]
[341544821,1730971840234,-500.0,0.0003041,4]
[341544822,1730971840243,-530.13,0.0003041,4]
[341544823,1730971840252,-500.0,0.0003041,4]
[341544824,1730971840261,-1227.32,0.0003041,4]
[341544825,1730971840270,-500.0,0.0003041,4]
[341544826,1730971840280,-965.73,0.0003041,4]
[341544827,1730971840291,-503.13,0.0003041,4]
[341544828,1730971840300,-500.0,0.0003041,4]
[341544829,1730971840309,-188.7526,0.0003041,4]
[341544830,1730971840319,-1166.4,0.0003041,4]
[341544831,1730971840328,-500.0,0.0003041,4]
[341544832,1730971840337,-500.0,0.0003041,4]
[341544833,1730971840346,-500.0,0.0003041,4]
[341544834,1730971840356,-508.85,0.0003041,4]
[341544835,1730971840366,-633.65,0.0003041,4]
[341544836,1730971840376,-1089.5,0.0003041,4]
[341544837,1730971840386,-500.0,0.0003041,4]
[341544838,1730971840395,-838.65,0.0003041,4]
[341544839,1730971840404,-500.0,0.0003041,4]
[341544840,1730971840414,-750.46,0.0003041,4]
[341544841,1730971840423,-500.0,0.0003041,4]
[341544842,1730971840432,-500.0,0.0003041,4]
[341544843,1730971840442,-590.87,0.0003041,4]
[341544844,1730971840451,-500.0,0.0003041,4]
[341544845,1730971840460,-500.0,0.0003041,4]
[341544846,1730971840469,-1485.68,0.0003041,4]
[341544847,1730971840480,-515.4,0.0003041,4]
[341544848,1730971840489,-647.6073984,0.0003041,4]
[341544849,1730971840498,-926.26,0.0003041,4]
[341544850,1730971840508,-500.0,0.0003041,4]
[341544851,1730971840517,-651.14,0.0003041,4]
[341544852,1730971840526,-547.68,0.0003041,4]
[341544853,1730971840535,-969.02,0.0003041,4]
[341544854,1730971840544,-500.0,0.0003041,4]
[341544855,1730971840554,-500.0,0.0003041,4]
[341544856,1730971840563,-532.98,0.0003041,4]
[341544857,1730971840572,-2419.65,0.0003041,4]
[341544858,1730971840581,-1156.03,0.0003041,4]
[341544859,1730971840590,-500.0,0.0003041,4]
[341544860,1730971840599,-500.0,0.0003041,4]
[341544861,1730971840608,-500.0,0.0003041,4]
[341544862,1730971840622,-523.52,0.0003041,4]
[341544863,1730971840631,-662.77,0.0003041,4]
[341544864,1730971840640,-1006.67,0.0003041,4]
[341544865,1730971840649,-500.0,0.0003041,4]
[341544866,1730971840659,-500.0,0.0003041,4]
[341544867,1730971840668,-500.0,0.0003041,4]
[341544868,1730971840678,-500.0,0.0003041,4]
[341544869,1730971840687,-511.96,0.0003041,4]
[341544870,1730971840696,-500.0,0.0003041,4]
[341544871,1730971840705,-802.8,0.0003041,4]
[341544872,1730971840714,-516.91,0.0003041,4]
[341544873,1730971840723,-500.0,0.0003041,4]
[341544874,1730971840733,-500.0,0.0003041,4]
[341544875,1730971840742,-500.0,0.0003041,4]
[341544876,1730971840751,-500.0,0.0003041,4]
[341544877,1730971840760,-500.0,0.0003041,4]
[341544878,1730971840769,-1400.93,0.0003041,4]
[341544879,1730971840779,-500.0,0.0003041,4]
[341544880,1730971840788,-754.89,0.0003041,4]
[341544881,1730971840797,-500.0,0.0003041,4]
[341544882,1730971840806,-500.0,0.0003041,4]
[341544883,1730971840816,-500.0,0.0003041,4]
[341544884,1730971840825,-1014.38,0.0003041,4]
[341544885,1730971840834,-763.52,0.0003041,4]
[341544886,1730971840844,-500.0,0.0003041,4]
[341544887,1730971840853,-500.0,0.0003041,4]
[341544888,1730971840862,-500.0,0.0003041,4]
[341544889,1730971840871,-923.34,0.0003041,4]
[341544890,1730971840880,-626.15624746,0.0003041,4]
[341544891,1730971840889,-979.6,0.0003041,4]
[341544892,1730971840898,-500.0,0.0003041,4]
[341544893,1730971840907,-520.86810941,0.0003041,4]
[341544894,1730971840916,-500.0,0.0003041,4]
[341544895,1730971840925,-500.0,0.0003041,4]
[341544896,1730971840935,-500.0,0.0003041,4]
[341544897,1730971840944,-806.36,0.0003041,4]
[341544898,1730971840953,-650.18,0.0003041,4]
[341544899,1730971840962,-1216.91,0.0003041,4]
[341544900,1730971840971,-500.0,0.0003041,4]
[341544901,1730971840980,-500.0,0.0003041,4]
[341544902,1730971840990,-500.0,0.0003041,4]
[341544903,1730971840999,-500.0,0.0003041,4]
[341544904,1730971841008,-681.78,0.0003041,4]
[341544905,1730971841017,-1000.0,0.0003041,10]